[Event "Late-Titled-Tuesday-Blitz-October-03-2023"]
[Site "Chess.com"]
[Date "2023.10.03"]
[Round "9"]
[White "Fandorine"]
[Black "GoldenShare"]
[Result "1-0"]
[WhiteElo "2931"]
[BlackElo "2587"]
[TimeControl "180+1"]
[EndTime "15:42:37 PDT"]
[Termination "Fandorine won by checkmate"]

1. b3 {[%clk 0:03:00.9]} 1... e5 {[%clk 0:03:00.1]} 2. Bb2 {[%clk 0:03:01.2]}
2... Nc6 {[%clk 0:03:00.4]} 3. e3 {[%clk 0:03:01.8]} 3... Nf6 {[%clk 0:03:00.6]}
4. Nf3 {[%clk 0:03:01.8]} 4... e4 {[%clk 0:03:00.2]} 5. Nd4 {[%clk 0:03:01.9]}
5... Nxd4 {[%clk 0:02:50.5]} 6. Bxd4 {[%clk 0:02:58.1]} 6... d5 {[%clk
0:02:50.5]} 7. c4 {[%clk 0:02:56]} 7... dxc4 {[%clk 0:02:33.6]} 8. Bxc4 {[%clk
0:02:55.4]} 8... Bd6 {[%clk 0:02:26.6]} 9. Nc3 {[%clk 0:02:53.1]} 9... Bf5
{[%clk 0:02:24.6]} 10. Qc2 {[%clk 0:02:37.5]} 10... O-O {[%clk 0:02:16.8]} 11.
f4 {[%clk 0:02:28]} 11... c6 {[%clk 0:01:51]} 12. a4 {[%clk 0:02:17.9]} 12...
Re8 {[%clk 0:01:28.3]} 13. O-O {[%clk 0:02:12.8]} 13... c5 {[%clk 0:01:25.4]}
14. Bxf6 {[%clk 0:02:05.3]} 14... Qxf6 {[%clk 0:01:26.3]} 15. a5 {[%clk
0:01:54.4]} 15... h5 {[%clk 0:01:25.9]} 16. a6 {[%clk 0:01:53]} 16... b6 {[%clk
0:01:23.6]} 17. Ra4 {[%clk 0:01:50]} 17... Rad8 {[%clk 0:01:18.5]} 18. Bb5
{[%clk 0:01:41.9]} 18... Re6 {[%clk 0:01:07.9]} 19. Nxe4 {[%clk 0:01:17]} 19...
Qg6 {[%clk 0:00:53.8]} 20. d3 {[%clk 0:01:15.9]} 20... Bb8 {[%clk 0:00:49.2]}
21. Kh1 {[%clk 0:00:56]} 21... h4 {[%clk 0:00:49]} 22. h3 {[%clk 0:00:55.7]}
22... Rde8 {[%clk 0:00:42.9]} 23. Bxe8 {[%clk 0:00:54.5]} 23... Rxe8 {[%clk
0:00:42.8]} 24. Qf2 {[%clk 0:00:48.6]} 24... Qe6 {[%clk 0:00:33.7]} 25. Rc4
{[%clk 0:00:42.6]} 25... Qd7 {[%clk 0:00:32.7]} 26. Qe2 {[%clk 0:00:24.5]} 26...
Be6 {[%clk 0:00:25.8]} 27. Rcc1 {[%clk 0:00:22.2]} 27... Bd5 {[%clk 0:00:26.1]}
28. Qg4 {[%clk 0:00:19.3]} 28... Qe7 {[%clk 0:00:19.4]} 29. Ng5 {[%clk
0:00:13.3]} 29... Qxe3 {[%clk 0:00:18.3]} 30. Rce1 {[%clk 0:00:07.5]} 30... Qxe1
{[%clk 0:00:17.1]} 31. Rxe1 {[%clk 0:00:08.4]} 31... Rxe1+ {[%clk 0:00:17.8]}
32. Kh2 {[%clk 0:00:09.1]} 32... Re8 {[%clk 0:00:14.9]} 33. Qxh4 {[%clk
0:00:06.3]} 33... f6 {[%clk 0:00:14.1]} 34. Qh7+ {[%clk 0:00:04.8]} 34... Kf8
{[%clk 0:00:14.3]} 35. Qh8+ {[%clk 0:00:03.7]} 35... Bg8 {[%clk 0:00:14.9]} 36.
Ne4 {[%clk 0:00:03.8]} 36... Bxf4+ {[%clk 0:00:13.3]} 37. g3 {[%clk 0:00:04.4]}
37... Be5 {[%clk 0:00:12.7]} 38. Qh5 {[%clk 0:00:03.7]} 38... Bxb3 {[%clk
0:00:11.5]} 39. Qf5 {[%clk 0:00:03.7]} 39... Be6 {[%clk 0:00:11.1]} 40. Qf3
{[%clk 0:00:03.7]} 40... Rd8 {[%clk 0:00:09.8]} 41. h4 {[%clk 0:00:04]} 41... c4
{[%clk 0:00:09.4]} 42. dxc4 {[%clk 0:00:04.9]} 42... Bxc4 {[%clk 0:00:09.9]} 43.
Ng5 {[%clk 0:00:05.1]} 43... Bd5 {[%clk 0:00:08.7]} 44. Qf5 {[%clk 0:00:04.5]}
44... Bf7 {[%clk 0:00:07.8]} 45. Nxf7 {[%clk 0:00:04.8]} 45... Kxf7 {[%clk
0:00:08.7]} 46. Kg2 {[%clk 0:00:04.8]} 46... Rd2+ {[%clk 0:00:08.6]} 47. Kf3
{[%clk 0:00:04.9]} 47... Rd6 {[%clk 0:00:08.7]} 48. g4 {[%clk 0:00:04.5]} 48...
b5 {[%clk 0:00:08.6]} 49. Qc8 {[%clk 0:00:04.8]} 49... Rd3+ {[%clk 0:00:06.9]}
50. Ke2 {[%clk 0:00:05.4]} 50... Rd4 {[%clk 0:00:05.6]} 51. Qb7+ {[%clk
0:00:05.8]} 51... Kg6 {[%clk 0:00:06]} 52. h5+ {[%clk 0:00:05.6]} 52... Kh6
{[%clk 0:00:05.8]} 53. Qxa7 {[%clk 0:00:06]} 53... Rxg4 {[%clk 0:00:05.6]} 54.
Qf7 {[%clk 0:00:03.8]} 54... Re4+ {[%clk 0:00:05.2]} 55. Kd3 {[%clk 0:00:03.8]}
55... Rd4+ {[%clk 0:00:05.1]} 56. Kc2 {[%clk 0:00:03.9]} 56... Rc4+ {[%clk
0:00:04.9]} 57. Qxc4 {[%clk 0:00:02.9]} 57... bxc4 {[%clk 0:00:04.3]} 58. a7
{[%clk 0:00:03.8]} 58... Kxh5 {[%clk 0:00:04]} 59. a8=Q {[%clk 0:00:04.7]} 59...
c3 {[%clk 0:00:04.9]} 60. Qf3+ {[%clk 0:00:05]} 60... Kg6 {[%clk 0:00:05.6]} 61.
Kd3 {[%clk 0:00:05.6]} 61... Kf7 {[%clk 0:00:06.3]} 62. Ke4 {[%clk 0:00:05.7]}
62... Kg6 {[%clk 0:00:07.2]} 63. Qd3 {[%clk 0:00:05.8]} 63... Kg5 {[%clk
0:00:07.1]} 64. Qe3+ {[%clk 0:00:03.8]} 64... Kg6 {[%clk 0:00:06.4]} 65. Qh3
{[%clk 0:00:04.4]} 65... Kf7 {[%clk 0:00:06.6]} 66. Kd5 {[%clk 0:00:04.9]} 66...
Kg6 {[%clk 0:00:07.3]} 67. Qg4+ {[%clk 0:00:05]} 67... Kf7 {[%clk 0:00:05.8]}
68. Qh5+ {[%clk 0:00:05.4]} 68... Ke7 {[%clk 0:00:04.8]} 69. Qg6 {[%clk
0:00:06]} 69... c2 {[%clk 0:00:02.6]} 70. Qxc2 {[%clk 0:00:05.8]} 70... Kf7
{[%clk 0:00:03.2]} 71. Qh7 {[%clk 0:00:05.6]} 71... Bb2 {[%clk 0:00:01.9]} 72.
Ke4 {[%clk 0:00:06]} 72... Be5 {[%clk 0:00:02.8]} 73. Kf5 {[%clk 0:00:06.7]}
73... Kf8 {[%clk 0:00:02.7]} 74. Ke6 {[%clk 0:00:06.7]} 74... f5 {[%clk
0:00:02.3]} 75. Qg6 {[%clk 0:00:06.5]} 75... Bf6 {[%clk 0:00:03.2]} 76. Qf7#
{[%clk 0:00:06.6]} 1-0

[Event "Late-Titled-Tuesday-Blitz-October-03-2023"]
[Site "Chess.com"]
[Date "2023.10.03"]
[Round "9"]
[White "DucksParadise"]
[Black "WPWPWP-2015"]
[Result "1/2-1/2"]
[WhiteElo "2647"]
[BlackElo "2522"]
[TimeControl "180+1"]
[EndTime "15:43:00 PDT"]
[Termination "Game drawn by agreement"]

1. d4 {[%clk 0:03:00.9]} 1... Nf6 {[%clk 0:02:58.9]} 2. c4 {[%clk 0:02:59.9]}
2... c6 {[%clk 0:02:59.3]} 3. Nf3 {[%clk 0:02:50.2]} 3... d5 {[%clk 0:02:58.8]}
4. Nc3 {[%clk 0:02:49.8]} 4... e6 {[%clk 0:02:56.6]} 5. Bg5 {[%clk 0:02:48.1]}
5... h6 {[%clk 0:02:53.5]} 6. Bxf6 {[%clk 0:02:31.4]} 6... Qxf6 {[%clk
0:02:50.3]} 7. e3 {[%clk 0:02:31.8]} 7... Nd7 {[%clk 0:02:46.1]} 8. Bd3 {[%clk
0:02:29.7]} 8... g6 {[%clk 0:02:45.2]} 9. O-O {[%clk 0:02:27]} 9... Bg7 {[%clk
0:02:43.8]} 10. e4 {[%clk 0:02:20.2]} 10... dxe4 {[%clk 0:02:42.9]} 11. Nxe4
{[%clk 0:02:16.2]} 11... Qe7 {[%clk 0:02:42.8]} 12. c5 {[%clk 0:02:07]} 12...
O-O {[%clk 0:02:42.1]} 13. Re1 {[%clk 0:02:04.4]} 13... Nf6 {[%clk 0:02:41.4]}
14. Nxf6+ {[%clk 0:01:50.7]} 14... Qxf6 {[%clk 0:02:35.8]} 15. Ne5 {[%clk
0:01:49.1]} 15... Rd8 {[%clk 0:02:33.9]} 16. Qg4 {[%clk 0:01:42.8]} 16... h5
{[%clk 0:02:28.5]} 17. Qe4 {[%clk 0:01:37.6]} 17... Bd7 {[%clk 0:02:23.6]} 18.
Rad1 {[%clk 0:01:33.8]} 18... Be8 {[%clk 0:02:22.1]} 19. Bf1 {[%clk 0:01:26.4]}
19... Rac8 {[%clk 0:01:40.2]} 20. g3 {[%clk 0:01:08.4]} 20... Rc7 {[%clk
0:01:30.2]} 21. Bg2 {[%clk 0:01:05.8]} 21... b6 {[%clk 0:01:23.1]} 22. b4 {[%clk
0:00:48.8]} 22... Rd5 {[%clk 0:01:17.3]} 23. Qe3 {[%clk 0:00:37.6]} 23... Rd8
{[%clk 0:01:15.4]} 24. Rd3 {[%clk 0:00:30.2]} 24... Qe7 {[%clk 0:00:55.5]} 25.
Nc4 {[%clk 0:00:24.7]} 25... b5 {[%clk 0:00:44.1]} 26. Nd6 {[%clk 0:00:21.7]}
26... Rxd6 {[%clk 0:00:43.5]} 27. cxd6 {[%clk 0:00:22.6]} 27... Qxd6 {[%clk
0:00:43.9]} 28. a3 {[%clk 0:00:21.6]} 28... Bf6 {[%clk 0:00:36.1]} 29. d5 {[%clk
0:00:18.5]} 29... cxd5 {[%clk 0:00:33.6]} 30. Bxd5 {[%clk 0:00:19]} 30... Qe7
{[%clk 0:00:22]} 31. Bg2 {[%clk 0:00:18.8]} 31... Kg7 {[%clk 0:00:21.9]} 32.
Red1 {[%clk 0:00:18.6]} 32... e5 {[%clk 0:00:18.8]} 33. Bd5 {[%clk 0:00:17.7]}
33... Bd7 {[%clk 0:00:17.2]} 34. Qe4 {[%clk 0:00:16.3]} 34... Bf5 {[%clk
0:00:17.1]} 35. Qe3 {[%clk 0:00:16.8]} 35... Bxd3 {[%clk 0:00:16.9]} 36. Qxd3
{[%clk 0:00:17.4]} 36... Rd7 {[%clk 0:00:16.9]} 37. Qe4 {[%clk 0:00:17.1]} 37...
Rd6 {[%clk 0:00:16.1]} 38. Rd3 {[%clk 0:00:17.2]} 38... Qd8 {[%clk 0:00:15.6]}
39. Qf3 {[%clk 0:00:15.5]} 39... Qd7 {[%clk 0:00:14.4]} 40. Be4 {[%clk
0:00:15.5]} 40... Rxd3 {[%clk 0:00:13.8]} 41. Qxd3 {[%clk 0:00:16.4]} 41... Qe8
{[%clk 0:00:09.8]} 42. Qd5 {[%clk 0:00:15.8]} 42... h4 {[%clk 0:00:08.2]} 43.
Qc6 {[%clk 0:00:15.3]} 43... Qb8 {[%clk 0:00:08]} 44. Qd7 {[%clk 0:00:15.1]}
44... hxg3 {[%clk 0:00:05.5]} 45. hxg3 {[%clk 0:00:16]} 45... Qd8 {[%clk
0:00:04.7]} 46. Qxd8 {[%clk 0:00:15.2]} 46... Bxd8 {[%clk 0:00:04.9]} 47. Bc6
{[%clk 0:00:15.9]} 47... a5 {[%clk 0:00:04.7]} 48. bxa5 {[%clk 0:00:14.9]} 48...
Bxa5 {[%clk 0:00:04.3]} 49. Bxb5 {[%clk 0:00:15]} 49... f5 {[%clk 0:00:04.6]}
50. Kf1 {[%clk 0:00:14.2]} 50... Kf6 {[%clk 0:00:05]} 51. f3 {[%clk 0:00:13.9]}
51... g5 {[%clk 0:00:04.7]} 52. Ke2 {[%clk 0:00:14.3]} 52... e4 {[%clk
0:00:04.9]} 53. fxe4 {[%clk 0:00:13.8]} 53... fxe4 {[%clk 0:00:05]} 54. Ke3
{[%clk 0:00:14]} 54... Ke5 {[%clk 0:00:05.4]} 55. Ke2 {[%clk 0:00:14.2]} 55...
Bc7 {[%clk 0:00:05.3]} 56. Bc6 {[%clk 0:00:13.2]} 56... Kd4 {[%clk 0:00:05.3]}
57. Bb7 {[%clk 0:00:13.1]} 57... Bxg3 {[%clk 0:00:05.2]} 58. a4 {[%clk
0:00:12.1]} 58... Bc7 {[%clk 0:00:05.3]} 59. Bc8 {[%clk 0:00:12.6]} 59... Ke5
{[%clk 0:00:04.8]} 60. Bg4 {[%clk 0:00:12]} 60... Kf4 {[%clk 0:00:04.7]} 61. Bh5
{[%clk 0:00:12.3]} 61... g4 {[%clk 0:00:05.2]} 62. Kf2 {[%clk 0:00:12.3]} 62...
g3+ {[%clk 0:00:05.4]} 63. Kg2 {[%clk 0:00:12.8]} 63... Bb6 {[%clk 0:00:05.5]}
64. Be2 {[%clk 0:00:12.3]} 64... Bc7 {[%clk 0:00:05.3]} 65. Bb5 {[%clk
0:00:12.6]} 65... Ke3 {[%clk 0:00:04.2]} 66. Bc4 {[%clk 0:00:12.3]} 66... Kd4
{[%clk 0:00:04.4]} 67. Bb5 {[%clk 0:00:12.6]} 67... e3 {[%clk 0:00:04.6]} 68.
Kf3 {[%clk 0:00:12.7]} 68... Bb8 {[%clk 0:00:03.9]} 69. Bf1 {[%clk 0:00:11.7]}
69... Bc7 {[%clk 0:00:03.1]} 70. Be2 {[%clk 0:00:11.4]} 70... Bb6 {[%clk
0:00:02.8]} 71. Bf1 {[%clk 0:00:11.9]} 71... Kc3 {[%clk 0:00:03.1]} 72. Ke2
{[%clk 0:00:11.8]} 72... Kb4 {[%clk 0:00:02.6]} 73. Bg2 {[%clk 0:00:11.7]} 73...
Kxa4 {[%clk 0:00:03]} 74. Bf3 {[%clk 0:00:12.3]} 74... Kb4 {[%clk 0:00:03.4]}
75. Bg2 {[%clk 0:00:12.9]} 75... Kc3 {[%clk 0:00:03.5]} 76. Bf3 {[%clk
0:00:13.4]} 76... Kd4 {[%clk 0:00:03.9]} 77. Bg2 {[%clk 0:00:13.9]} 77... Bc7
{[%clk 0:00:04.4]} 78. Bf3 {[%clk 0:00:14]} 78... Bd6 {[%clk 0:00:05.3]} 79. Bg2
{[%clk 0:00:14.4]} 79... Bb8 {[%clk 0:00:06.2]} 80. Bf3 {[%clk 0:00:14.9]} 80...
Be5 {[%clk 0:00:07]} 81. Bg2 {[%clk 0:00:15.6]} 81... Bf4 {[%clk 0:00:07.9]} 82.
Bf3 {[%clk 0:00:16.1]} 82... Bd6 {[%clk 0:00:08.8]} 83. Bg2 {[%clk 0:00:16.7]}
83... Bc7 {[%clk 0:00:09.7]} 84. Bf3 {[%clk 0:00:17.3]} 84... Bb6 {[%clk
0:00:09.5]} 85. Bg2 {[%clk 0:00:18]} 85... Ke5 {[%clk 0:00:09.9]} 86. Kd3 {[%clk
0:00:17.7]} 86... Kf4 {[%clk 0:00:10.3]} 87. Ke2 {[%clk 0:00:18.4]} 87... Bd4
{[%clk 0:00:10.2]} 88. Kd3 {[%clk 0:00:18.8]} 88... Ba7 {[%clk 0:00:10.4]} 89.
Ke2 {[%clk 0:00:19.5]} 89... Kg4 {[%clk 0:00:10.7]} 90. Kd3 {[%clk 0:00:20.1]}
90... Kg5 {[%clk 0:00:10.9]} 91. Ke2 {[%clk 0:00:20.8]} 91... Kf4 {[%clk
0:00:11.3]} 92. Kd3 {[%clk 0:00:21.4]} 92... Bb6 {[%clk 0:00:11.7]} 93. Ke2
{[%clk 0:00:22]} 93... Ba5 {[%clk 0:00:11.8]} 94. Kd3 {[%clk 0:00:22.5]} 94...
Be1 {[%clk 0:00:12]} 95. Ke2 {[%clk 0:00:23.2]} 95... Bf2 {[%clk 0:00:12.5]} 96.
Kd3 {[%clk 0:00:23.8]} 96... Ke5 {[%clk 0:00:12.9]} 97. Ke2 {[%clk 0:00:24.5]}
97... Kd4 {[%clk 0:00:13.5]} 98. Bf3 {[%clk 0:00:24.4]} 98... Kc3 {[%clk
0:00:13.9]} 99. Bg2 {[%clk 0:00:24.9]} 99... Bg1 {[%clk 0:00:14.2]} 100. Bf3
{[%clk 0:00:25.3]} 100... Kc2 {[%clk 0:00:14.4]} 101. Bg2 {[%clk 0:00:26.2]}
101... Kc3 {[%clk 0:00:14.8]} 102. Bf3 {[%clk 0:00:26.8]} 102... Bf2 {[%clk
0:00:14.6]} 103. Bg2 {[%clk 0:00:27.7]} 103... Kc4 {[%clk 0:00:14.8]} 104. Bf3
{[%clk 0:00:28.2]} 104... Kc5 {[%clk 0:00:15.1]} 105. Bg2 {[%clk 0:00:29.1]}
105... Kd6 {[%clk 0:00:15.6]} 106. Bf3 {[%clk 0:00:29.6]} 106... Ke5 {[%clk
0:00:16.2]} 107. Bg2 {[%clk 0:00:30.5]} 107... Kf4 {[%clk 0:00:16.7]} 108. Kd3
{[%clk 0:00:30.9]} 108... Kg4 {[%clk 0:00:16.3]} 109. Ke2 {[%clk 0:00:31.8]}
109... Bg1 {[%clk 0:00:16.4]} 110. Kd3 {[%clk 0:00:32.4]} 110... Kf5 {[%clk
0:00:13.2]} 111. Ke2 {[%clk 0:00:33.3]} 111... Kf4 {[%clk 0:00:13.8]} 112. Kd3
{[%clk 0:00:33.6]} 112... e2 {[%clk 0:00:14.3]} 113. Kxe2 {[%clk 0:00:34.5]}
113... Bf2 {[%clk 0:00:14.7]} 114. Kf1 {[%clk 0:00:34]} 1/2-1/2

[Event "Late-Titled-Tuesday-Blitz-October-03-2023"]
[Site "Chess.com"]
[Date "2023.10.03"]
[Round "10"]
[White "tomozupan"]
[Black "chessmoo"]
[Result "0-1"]
[WhiteElo "2249"]
[BlackElo "2454"]
[TimeControl "180+1"]
[EndTime "15:46:09 PDT"]
[Termination "chessmoo won by resignation"]

1. d4 {[%clk 0:03:00.9]} 1... d5 {[%clk 0:02:58.7]} 2. c4 {[%clk 0:03:00.1]}
2... c6 {[%clk 0:02:56.1]} 3. Nc3 {[%clk 0:02:59.4]} 3... Nf6 {[%clk 0:02:56.5]}
4. cxd5 {[%clk 0:02:59.5]} 4... cxd5 {[%clk 0:02:56.7]} 5. Nf3 {[%clk
0:02:59.5]} 5... Nc6 {[%clk 0:02:57.1]} 6. Bf4 {[%clk 0:02:59.7]} 6... a6 {[%clk
0:02:57.3]} 7. Ne5 {[%clk 0:02:59.2]} 7... e6 {[%clk 0:02:55.2]} 8. e3 {[%clk
0:02:57.1]} 8... Bd6 {[%clk 0:02:54.7]} 9. Nxc6 {[%clk 0:02:55.1]} 9... bxc6
{[%clk 0:02:54.7]} 10. Bxd6 {[%clk 0:02:51.7]} 10... Qxd6 {[%clk 0:02:55.6]} 11.
Qd2 {[%clk 0:02:50.8]} 11... c5 {[%clk 0:02:55.6]} 12. dxc5 {[%clk 0:02:48.5]}
12... Qxc5 {[%clk 0:02:56.5]} 13. Rc1 {[%clk 0:02:47.6]} 13... O-O {[%clk
0:02:56.3]} 14. Bd3 {[%clk 0:02:34.8]} 14... Qd6 {[%clk 0:02:50]} 15. O-O {[%clk
0:02:31.9]} 15... e5 {[%clk 0:02:28.2]} 16. Be2 {[%clk 0:02:26.5]} 16... Be6
{[%clk 0:02:14.9]} 17. Rfd1 {[%clk 0:02:25.4]} 17... Rfd8 {[%clk 0:02:12.6]} 18.
Na4 {[%clk 0:02:24.3]} 18... Ne4 {[%clk 0:02:07.1]} 19. Qb4 {[%clk 0:02:20.3]}
19... Qxb4 {[%clk 0:02:06.1]} 0-1

[Event "Late-Titled-Tuesday-Blitz-October-03-2023"]
[Site "Chess.com"]
[Date "2023.10.03"]
[Round "10"]
[White "leoduarte"]
[Black "Djager97"]
[Result "0-1"]
[WhiteElo "2422"]
[BlackElo "2546"]
[TimeControl "180+1"]
[EndTime "15:46:47 PDT"]
[Termination "Djager97 won by resignation"]

1. d4 {[%clk 0:02:59.8]} 1... d5 {[%clk 0:03:00]} 2. Nf3 {[%clk 0:02:59.7]} 2...
Nf6 {[%clk 0:03:00.5]} 3. Bf4 {[%clk 0:03:00.1]} 3... c5 {[%clk 0:03:00.5]} 4.
e3 {[%clk 0:03:00.8]} 4... Nc6 {[%clk 0:03:01.1]} 5. Nbd2 {[%clk 0:03:00.8]}
5... Qb6 {[%clk 0:03:01.7]} 6. dxc5 {[%clk 0:02:59.7]} 6... Qxb2 {[%clk
0:03:02.2]} 7. Rb1 {[%clk 0:02:58.5]} 7... Qc3 {[%clk 0:03:02.6]} 8. Bb5 {[%clk
0:02:58.8]} 8... g6 {[%clk 0:03:02.2]} 9. e4 {[%clk 0:02:58.4]} 9... dxe4 {[%clk
0:03:03.1]} 10. Be5 {[%clk 0:02:47.8]} 10... Qa5 {[%clk 0:03:03.5]} 11. Bxf6
{[%clk 0:02:25.3]} 11... exf6 {[%clk 0:03:01.9]} 12. Qe2 {[%clk 0:02:21.3]}
12... f5 {[%clk 0:02:48.7]} 13. Ne5 {[%clk 0:02:12.2]} 13... Qc7 {[%clk
0:02:45.5]} 14. Ndc4 {[%clk 0:01:59.8]} 14... Bxc5 {[%clk 0:02:43.2]} 15. f3
{[%clk 0:01:34.4]} 15... O-O {[%clk 0:02:40]} 16. Bxc6 {[%clk 0:01:32.1]} 16...
bxc6 {[%clk 0:02:39.4]} 17. fxe4 {[%clk 0:01:32.2]} 17... Ba6 {[%clk 0:02:38.3]}
0-1

[Event "Late-Titled-Tuesday-Blitz-October-03-2023"]
[Site "Chess.com"]
[Date "2023.10.03"]
[Round "10"]
[White "santosalberto1987"]
[Black "YellowJacek"]
[Result "1-0"]
[WhiteElo "2489"]
[BlackElo "2300"]
[TimeControl "180+1"]
[EndTime "15:47:57 PDT"]
[Termination "santosalberto1987 won by resignation"]

1. e4 {[%clk 0:03:00.9]} 1... e5 {[%clk 0:02:59.7]} 2. Nf3 {[%clk 0:03:00.8]}
2... Nf6 {[%clk 0:03:00]} 3. Nxe5 {[%clk 0:03:00.4]} 3... d6 {[%clk 0:02:59.7]}
4. Nf3 {[%clk 0:03:01]} 4... Nxe4 {[%clk 0:02:59.9]} 5. d4 {[%clk 0:03:01.7]}
5... d5 {[%clk 0:02:59.8]} 6. Bd3 {[%clk 0:03:02.6]} 6... Bd6 {[%clk 0:02:53.5]}
7. O-O {[%clk 0:03:02.1]} 7... O-O {[%clk 0:02:53.3]} 8. c4 {[%clk 0:03:02.5]}
8... c6 {[%clk 0:02:53.5]} 9. cxd5 {[%clk 0:03:02.2]} 9... cxd5 {[%clk
0:02:53.4]} 10. Nc3 {[%clk 0:03:02.9]} 10... Bf5 {[%clk 0:02:36]} 11. Qc2 {[%clk
0:02:53.4]} 11... Re8 {[%clk 0:02:32]} 12. Re1 {[%clk 0:02:48.3]} 12... Nc6
{[%clk 0:02:15.7]} 13. a3 {[%clk 0:02:33.7]} 13... Bg6 {[%clk 0:01:51]} 14. Nxe4
{[%clk 0:02:30.9]} 14... dxe4 {[%clk 0:01:46.9]} 15. Bxe4 {[%clk 0:02:31.4]}
15... Nxd4 {[%clk 0:01:17.5]} 16. Nxd4 {[%clk 0:02:27.2]} 16... Qh4 {[%clk
0:01:16.2]} 17. g3 {[%clk 0:01:33.7]} 17... Bxe4 {[%clk 0:01:13.6]} 18. gxh4
{[%clk 0:01:32]} 18... Bxc2 {[%clk 0:01:13]} 19. Nxc2 {[%clk 0:01:31.1]} 1-0

[Event "Late-Titled-Tuesday-Blitz-October-03-2023"]
[Site "Chess.com"]
[Date "2023.10.03"]
[Round "10"]
[White "mishanick"]
[Black "Korchmar_Vasiliy"]
[Result "1-0"]
[WhiteElo "3001"]
[BlackElo "2719"]
[TimeControl "180+1"]
[EndTime "15:48:14 PDT"]
[Termination "mishanick won by resignation"]

1. d4 {[%clk 0:03:00.9]} 1... Nf6 {[%clk 0:02:59.9]} 2. c4 {[%clk 0:03:01.5]}
2... e6 {[%clk 0:03:00]} 3. Nc3 {[%clk 0:03:01.9]} 3... d5 {[%clk 0:03:00.2]} 4.
Nf3 {[%clk 0:03:00.6]} 4... dxc4 {[%clk 0:02:59]} 5. e4 {[%clk 0:02:58]} 5... b5
{[%clk 0:02:58.4]} 6. e5 {[%clk 0:02:57.4]} 6... Nd5 {[%clk 0:02:58.7]} 7. Nxb5
{[%clk 0:02:57.7]} 7... Nb6 {[%clk 0:02:58.9]} 8. a4 {[%clk 0:02:57.9]} 8... a5
{[%clk 0:02:39.3]} 9. Be2 {[%clk 0:02:55.5]} 9... Nc6 {[%clk 0:02:38.2]} 10. O-O
{[%clk 0:02:56.1]} 10... Be7 {[%clk 0:02:38]} 11. Be3 {[%clk 0:02:54.9]} 11...
O-O {[%clk 0:02:37.2]} 12. Rc1 {[%clk 0:02:53.6]} 12... Bb7 {[%clk 0:02:27.6]}
13. Nd2 {[%clk 0:02:53.2]} 13... Nb4 {[%clk 0:01:59.1]} 14. Nxc4 {[%clk
0:02:53]} 14... N6d5 {[%clk 0:01:48.2]} 15. Bd2 {[%clk 0:02:51.6]} 15... f6
{[%clk 0:01:42.5]} 16. b3 {[%clk 0:02:50.9]} 16... fxe5 {[%clk 0:01:26.2]} 17.
Nxe5 {[%clk 0:02:51.1]} 17... Bf6 {[%clk 0:01:26.8]} 18. Bxb4 {[%clk 0:02:47.8]}
18... Nxb4 {[%clk 0:01:18.3]} 19. Nxc7 {[%clk 0:02:47.6]} 19... Bxe5 {[%clk
0:01:18.1]} 20. dxe5 {[%clk 0:02:40.6]} 20... Qg5 {[%clk 0:01:18.5]} 21. f3
{[%clk 0:02:41.3]} 21... Rad8 {[%clk 0:01:07.7]} 22. Qe1 {[%clk 0:02:41.8]}
22... Qxe5 {[%clk 0:00:54.5]} 23. Bc4 {[%clk 0:02:42]} 23... Qd4+ {[%clk
0:00:28.9]} 24. Kh1 {[%clk 0:02:40.7]} 24... Nd3 {[%clk 0:00:17.3]} 25. Nxe6
{[%clk 0:02:39.6]} 25... Qxc4 {[%clk 0:00:07.7]} 26. bxc4 {[%clk 0:02:36.2]}
26... Nxe1 {[%clk 0:00:07.9]} 27. Rfxe1 {[%clk 0:02:36.9]} 1-0

[Event "Late-Titled-Tuesday-Blitz-October-03-2023"]
[Site "Chess.com"]
[Date "2023.10.03"]
[Round "10"]
[White "rikchessmx"]
[Black "HajiyevKanan"]
[Result "0-1"]
[WhiteElo "2351"]
[BlackElo "2534"]
[TimeControl "180+1"]
[EndTime "15:48:16 PDT"]
[Termination "HajiyevKanan won by resignation"]

1. e4 {[%clk 0:02:25.2]} 1... c6 {[%clk 0:03:00.9]} 2. d4 {[%clk 0:02:24.6]}
2... d5 {[%clk 0:03:01.8]} 3. Nc3 {[%clk 0:02:24.6]} 3... a6 {[%clk 0:03:02.4]}
4. a3 {[%clk 0:02:22.4]} 4... dxe4 {[%clk 0:02:59.8]} 5. Nxe4 {[%clk 0:02:21.9]}
5... Bf5 {[%clk 0:03:00.6]} 6. Ng3 {[%clk 0:02:21.4]} 6... Bg6 {[%clk
0:03:01.2]} 7. Nf3 {[%clk 0:02:21.2]} 7... Nd7 {[%clk 0:03:01.1]} 8. Bd3 {[%clk
0:02:21.4]} 8... Ngf6 {[%clk 0:03:01]} 9. O-O {[%clk 0:02:19.7]} 9... e6 {[%clk
0:03:01.5]} 10. Re1 {[%clk 0:02:18.1]} 10... Bd6 {[%clk 0:03:01.6]} 11. Qe2
{[%clk 0:02:07.7]} 11... O-O {[%clk 0:03:00.8]} 12. Ne4 {[%clk 0:01:52.4]} 12...
Nxe4 {[%clk 0:03:00.5]} 13. Bxe4 {[%clk 0:01:53.3]} 13... Qc7 {[%clk 0:03:01]}
14. Bxg6 {[%clk 0:01:51.9]} 14... hxg6 {[%clk 0:03:01.9]} 15. b4 {[%clk
0:01:50.2]} 15... a5 {[%clk 0:03:01]} 16. Bd2 {[%clk 0:01:43.6]} 16... Nf6
{[%clk 0:02:58.8]} 17. c4 {[%clk 0:01:41.3]} 17... a4 {[%clk 0:02:50.7]} 18. Bc3
{[%clk 0:01:32.2]} 18... b5 {[%clk 0:02:49.7]} 19. c5 {[%clk 0:01:30.7]} 19...
Bf4 {[%clk 0:02:49.3]} 20. g3 {[%clk 0:01:29.8]} 20... Nd5 {[%clk 0:02:48.4]}
21. Bd2 {[%clk 0:01:28.8]} 21... Bxd2 {[%clk 0:02:46.7]} 22. Qxd2 {[%clk
0:01:29.2]} 22... Qe7 {[%clk 0:02:42.9]} 23. Ne5 {[%clk 0:01:28.8]} 23... Rac8
{[%clk 0:02:42.9]} 24. h4 {[%clk 0:01:25.8]} 24... Rfd8 {[%clk 0:02:42.1]} 25.
Qb2 {[%clk 0:01:20.2]} 25... Qf6 {[%clk 0:02:40.9]} 26. f4 {[%clk 0:01:18.8]}
26... Qf5 {[%clk 0:02:40]} 27. Qb1 {[%clk 0:01:16.8]} 27... Qh3 {[%clk
0:02:33.8]} 28. Kf2 {[%clk 0:01:10.8]} 28... Nxf4 {[%clk 0:02:12.5]} 29. gxf4
{[%clk 0:01:05.6]} 29... Rxd4 {[%clk 0:02:09.3]} 30. Nf3 {[%clk 0:00:51.1]}
30... Rxf4 {[%clk 0:02:09.1]} 31. Re4 {[%clk 0:00:42.9]} 31... Qxf3+ {[%clk
0:02:05.5]} 32. Ke1 {[%clk 0:00:42.4]} 32... Rxe4+ {[%clk 0:02:05.4]} 0-1